fUST/lending_fUST_20250521
["ID","MTS","AMOUNT","RATE_DAILY","PERIOD"]
[361756812,1747762245344,-401.0,0.00023,2]
[361756813,1747762245354,-1600.0,0.00023,30]
[361756814,1747762245363,-1600.0,0.00023,30]
[361756815,1747762245372,-1600.0,0.00023,30]
[361756816,1747762245382,-1600.0,0.00023,30]
[361756817,1747762245391,-1600.0,0.00023,30]
[361756818,1747762245400,-1600.0,0.00023,30]
[361756819,1747762245411,-1600.0,0.00023,30]
[361756820,1747762245420,-500.0,0.00023,30]
[361756821,1747762245429,-1600.0,0.00023,30]
[361756822,1747762245438,-1600.0,0.00023,30]
[361756823,1747762245447,-500.0,0.00023,30]
[361756824,1747762245457,-1600.0,0.00023,30]
[361756825,1747762245466,-500.0,0.00023,30]
[361756826,1747762245475,-500.0,0.00023,30]
[361756827,1747762245485,-1600.0,0.00023,30]
[361756828,1747762245495,-500.0,0.00023,30]
[361756829,1747762245504,-601.41730451,0.00023,30]
[361756830,1747762245519,-1600.0,0.00023,30]
[361756831,1747762245529,-500.0,0.00023,30]
[361756832,1747762245538,-1600.0,0.00023,30]
[361756833,1747762245548,-500.0,0.00023,30]
[361756834,1747762245557,-2484.61832442,0.00023,30]
[361756835,1747762245566,-500.0,0.00023,30]
[361756836,1747762245576,-500.0,0.00023,30]
[361756837,1747762245585,-501.31243587,0.00023,30]
[361756838,1747762245594,-500.0,0.00023,30]
[361756839,1747762245604,-500.0,0.00023,30]
[361756840,1747762245613,-538.765977,0.00023,30]
[361756841,1747762245622,-500.0,0.00023,30]
[361756842,1747762245631,-500.0,0.00023,30]
[361756843,1747762245641,-500.0,0.00023,30]
[361756844,1747762245650,-945.31234579,0.00023,30]
[361756845,1747762245659,-907.99160626,0.00023,30]
[361756846,1747762245669,-600.0,0.00023,30]
[361756847,1747762245678,-600.0,0.00023,30]
[361756848,1747762245688,-600.0,0.00023,30]
[361756849,1747762245697,-600.0,0.00023,30]
[361756850,1747762245706,-600.0,0.00023,30]
[361756851,1747762245715,-600.0,0.00023,30]
[361756852,1747762245725,-600.0,0.00023,30]
[361756853,1747762245734,-600.0,0.00023,30]
[361756854,1747762245743,-600.0,0.00023,30]
[361756855,1747762245753,-600.0,0.00023,30]
[361756856,1747762245762,-600.0,0.00023,30]
[361756857,1747762245771,-600.0,0.00023,30]
[361756858,1747762245781,-1000.0,0.00023,30]
[361756859,1747762245791,-151.0,0.00023,5]
[361756860,1747762245805,-160.0,0.00023,3]
[361756862,1747762245814,-187.0,0.00023,7]
[361756863,1747762245823,-170.0,0.00023,7]
[361756864,1747762245833,-422.65292303,0.00023,3]
[361756865,1747762245842,-160.0,0.00023,3]
[361756866,1747762245852,-151.0,0.00023026,7]
[361756867,1747762245862,-166.075718,0.00023026,7]
[361756869,1747762245872,-187.218041,0.00023026,7]
[361756870,1747762245882,-166.075718,0.00023026,7]
[361756871,1747762245892,-151.0,0.00023026,7]
[361756872,1747762245901,-301.57317,0.00023026,7]
[361756874,1747762245910,-301.57317,0.00023026,7]
[361756875,1747762245927,-740.732304,0.00023026,2]
[361756877,1747762245944,-740.732304,0.00023026,2]
[361756879,1747762245954,-384.555376,0.00023026,7]
[361756880,1747762245965,-384.555376,0.00023026,7]
[361756881,1747762245973,-151.0,0.00023068,7]
[361756882,1747762245984,-151.0,0.00023068,7]
[361756883,1747762245995,-255.723502,0.00023068,7]
[361756884,1747762246006,-151.0,0.00023068,7]
[361756885,1747762246016,-913.894364,0.00023068,7]
[361756886,1747762246027,-913.894364,0.00023068,7]
[361756887,1747762246037,-151.0,0.00023068,7]
[361756888,1747762246048,-1500.0,0.00023068,2]
[361756889,1747762246058,-960.5,0.0002307,2]
[361756890,1747762246070,-820.45495917,0.00023107,8]
[361756891,1747762246079,-960.5,0.0002317,2]
[361756892,1747762246088,-151.0,0.0002317,7]
[361756893,1747762246098,-151.0,0.0002317,7]
[361756895,1747762246107,-960.5,0.0002327,7]
[361756897,1747762246119,-151.0,0.0002327,7]
[361756898,1747762246128,-151.0,0.0002327,7]
[361756899,1747762246138,-151.0,0.0002327,7]
[361756900,1747762246147,-228.17552,0.0002327,7]
[361756901,1747762246156,-151.0,0.0002327,7]
[361756903,1747762246166,-163.566025,0.0002327,7]
[361756904,1747762246175,-163.566025,0.0002327,7]
[361756905,1747762246186,-151.0,0.0002327,7]
[361756906,1747762246196,-151.0,0.0002327,7]
[361756907,1747762246205,-1800.0,0.00023277,2]
[361756908,1747762246214,-1500.0,0.00023277,2]
[361756910,1747762246223,-151.0,0.0002336,7]
[361756912,1747762246232,-151.0,0.0002336,7]
[361756913,1747762246241,-153.68077,0.0002336,7]
[361756914,1747762246250,-153.68077,0.0002336,7]
[361756915,1747762246259,-960.5,0.0002337,2]
[361756916,1747762246269,-2000.0,0.000234,2]
[361756917,1747762246278,-820.45495917,0.00023417,9]
[361756918,1747762246287,-645.57629919,0.00023456,5]
[361756919,1747762246297,-500.0,0.00023456,9]
[361756920,1747762246307,-500.0,0.00023456,9]
[361756921,1747762246316,-960.5,0.0002347,3]
[361756922,1747762246325,-200.0,0.0002348,8]
[361756923,1747762246335,-79.19963256,0.00023534,2]
[361756924,1747762246356,-244.68186076,0.00023534,2]
[361756925,1747762246371,-960.5,0.0002357,7]
[361756926,1747762246381,-2000.0,0.00023616,2]
[361756927,1747762246391,-323.88149332,0.00023644,2]
[361756928,1747762246401,-14150.87382424,0.0002366,2]
[361756929,1747762246417,-502.81,0.00016438,2]
[361756930,1747762246426,-52.19371477,0.0002366,2]
[361756931,1747762246546,-300.0,0.00015313,2]
[361756932,1747762246556,-48.28,0.00016428,3]
[361756935,1747762246567,-708.13,0.00016428,3]
[361756936,1747762246576,-420.0,0.00016754,2]
[361756938,1747762246585,-587.0,0.0001833,2]
[361756939,1747762246594,-2200.0,0.00019937,2]
[361756940,1747762246604,-633.48672614,0.00020055,2]
[361756941,1747762246618,-189.51327386,0.00020055,2]
[361756942,1747762246627,-155.17816687,0.00021942,2]
[361756943,1747762246639,-996.82183313,0.00021942,2]
[361756944,1747762246648,-314.48519801,0.00023,30]
[361756945,1747762246657,-5073.61528838,0.0002366,2]
[361756946,1747762246668,-3053.02377139,0.0002366,2]
[361756947,1747762246695,-398.076,0.00016438,2]
[361756948,1747762246707,-51.924,0.00016438,2]
[361756949,1747762246716,-1529.24395927,0.0002366,2]
[361756950,1747762246754,-1141.04944195,0.0002366,2]
[361756951,1747762246764,-151.0,0.0002366,7]
[361756952,1747762246773,-151.0,0.0002366,7]
[361756953,1747762246782,-151.0,0.0002366,7]
[361756954,1747762246792,-151.0,0.0002366,7]
[361756955,1747762246803,-151.0,0.0002366,7]
[361756956,1747762246815,-151.0,0.0002366,7]
[361756957,1747762246824,-220.718008,0.0002366,7]
[361756958,1747762246833,-280.909318,0.0002366,7]
[361756959,1747762246844,-151.0,0.0002366,7]
[361756960,1747762246854,-297.730003,0.0002366,7]
[361756961,1747762246867,-151.0,0.0002366,7]
[361756962,1747762246877,-297.730003,0.0002366,7]
[361756963,1747762247012,-3223.38126339,0.00023661,2]
[361756964,1747762247022,-960.5,0.0002367,7]
[361756965,1747762247032,-151.0,0.0002367,7]
[361756966,1747762247043,-166.075718,0.0002367,7]
[361756967,1747762247053,-166.075718,0.0002367,7]
[361756968,1747762247062,-301.57317,0.0002367,7]
[361756969,1747762247071,-301.57317,0.0002367,7]
[361756970,1747762247080,-820.45495917,0.00023728,9]
[361756971,1747762247090,-740.732304,0.00023728,2]
[361756972,1747762247099,-740.732304,0.00023728,2]
[361756973,1747762247109,-384.555376,0.00023728,7]
[361756974,1747762247123,-384.555376,0.00023728,7]
[361756975,1747762247133,-1100.0,0.00023733,2]
[361756976,1747762247142,-151.0,0.00023733,7]
[361756977,1747762247151,-192.681465,0.00023733,7]
[361756978,1747762247161,-151.0,0.00023733,7]
[361756979,1747762247171,-151.0,0.00023733,7]
[361756980,1747762247180,-28.41518481,0.00023733,7]
[361756981,1747762247192,-122.58481519,0.00023733,7]
[361756982,1747762247202,-323.88149332,0.00023753,2]
[361756983,1747762247211,-908.58589854,0.0002377,5]
[361756984,1747762247249,-51.91410146,0.0002377,5]
[361756985,1747762247261,-4000.0,0.000238,2]
[361756986,1747762247270,-151.0,0.000238,7]
[361756987,1747762247279,-151.0,0.000238,7]
[361756988,1747762247289,-151.0,0.000238,7]
[361756989,1747762247300,-151.0,0.000238,7]
[361756990,1747762247310,-151.0,0.000238,7]
[361756991,1747762247319,-151.0,0.000238,7]
[361756992,1747762247328,-163.566025,0.000238,7]
[361756993,1747762247337,-163.566025,0.000238,7]
[361756994,1747762247347,-151.0,0.000238,7]
[361756995,1747762247358,-151.0,0.000238,7]
[361756996,1747762247370,-153.68077,0.000238,7]
[361756997,1747762247379,-153.68077,0.000238,7]
[361756998,1747762247389,-151.0,0.000238,7]
[361756999,1747762247399,-913.894364,0.000238,7]
[361757000,1747762247407,-913.894364,0.000238,7]
[361757001,1747762247417,-151.0,0.000238,7]
[361757002,1747762247426,-10640.64347026,0.000238,2]
[361757003,1747762247436,-200.0,0.00023808,7]
[361757004,1747762247445,-200.0,0.00023808,7]
[361757005,1747762247455,-2400.0,0.00023825,2]
[361757006,1747762247464,-502.6653485,0.00023825,2]
[361757007,1747762247473,-200.0,0.00023846,7]
[361757008,1747762247482,-200.0,0.00023846,7]
[361757009,1747762247491,-323.88149332,0.00023863,2]
[361757010,1747762247500,-960.5,0.0002387,4]
[361757011,1747762247509,-2390.61326846,0.000239,15]
[361757012,1747762247521,-7171.70658849,0.000239,15]
[361757013,1747762247537,-450.0,0.00016438,2]
[361757014,1747762247546,-509.6161884,0.000239,15]
[361757016,1747762476880,-288.09883264,0.00013562,2]
[361757023,1747762525107,-3982.91930728,0.00013562,2]
[361757024,1747762537483,82.08069272,0.00013699,2]
[361757026,1747762780828,-2493.91930728,0.00013562,2]
[361757027,1747762780851,-200.844848,0.00013699,2]
[361757028,1747762780874,-300.0,0.00014786,2]
[361757029,1747762780897,-1200.0,0.00014786,2]
[361757030,1747762780919,-300.0,0.00014786,2]
[361757031,1747762780942,-300.0,0.00014786,2]
[361757032,1747762780964,-24839.23584472,0.00014787,2]
[361757033,1747762852273,-157.0,0.0001464,2]
[361757034,1747762978425,-60.76415528,0.00014787,2]
[361757035,1747762978446,-114.23584472,0.00015437,2]
[361757037,1747763105883,-67.75406798,0.00015437,2]
[361757038,1747763105906,-139.24593202,0.00015885,2]
[361757039,1747763173974,-37.72551578,0.00015885,2]
[361757040,1747763173996,-113.27448422,0.00015945,2]
[361757060,1747763432558,-89.98726136,0.00015945,2]
[361757061,1747763432569,-154.18501736,0.00016338,2]
[361757062,1747763432579,-183.23561332,0.00016338,2]
[361757063,1747763432610,-31.50245296,0.00016338,2]
[361757064,1747763432620,-300.0,0.00016436,2]
[361757065,1747763432630,-500.0,0.00016437,2]
[361757066,1747763432639,-500.0,0.00016437,2]
[361757067,1747763432649,-500.0,0.00016437,2]
[361757068,1747763432659,-500.0,0.00016437,2]
[361757069,1747763432668,-500.0,0.00016437,2]
[361757070,1747763432678,-500.0,0.00016437,2]
[361757071,1747763432688,-500.0,0.00016437,2]
[361757072,1747763432698,-157.32626057,0.00016437,2]
[361757073,1747763432707,-529.5035797,0.00016437,2]
[361757074,1747763432717,-487.53776847,0.00016437,2]
[361757075,1747763432727,-217.20874117,0.00016437,2]
[361757076,1747763432737,-511.26408235,0.00016437,2]
[361757077,1747763432746,-151.0,0.00016438,2]
[361757078,1747763432756,-450.0,0.00016438,2]
[361757079,1747763432765,-450.0,0.00016438,2]
[361757080,1747763432776,-450.0,0.00016438,2]
[361757081,1747763432785,-450.0,0.00016438,2]
[361757082,1747763432795,-400.0,0.00016438,2]
[361757083,1747763432804,-450.0,0.00016438,2]
[361757084,1747763432813,-450.0,0.00016438,2]
[361757085,1747763432823,-450.0,0.00016438,2]
[361757086,1747763432832,-400.0,0.00016438,2]
[361757087,1747763432842,-450.0,0.00016438,2]
[361757088,1747763432852,-400.0,0.00016438,2]
[361757089,1747763432862,-450.0,0.00016438,2]
[361757090,1747763432871,-450.0,0.00016438,2]
[361757091,1747763432880,-450.0,0.00016438,2]
[361757092,1747763432890,-301.74819044,0.00016438,2]
[361757093,1747763432899,-450.0,0.00016438,2]
[361757094,1747763432909,-450.0,0.00016438,2]
[361757095,1747763432918,-450.0,0.00016438,2]
[361757096,1747763432927,-450.0,0.00016438,2]
[361757097,1747763432937,-400.0,0.00016438,2]
[361757098,1747763432947,-450.0,0.00016438,2]
[361757099,1747763432957,-201.82120906,0.00016438,2]
[361757100,1747763432966,-450.0,0.00016438,2]
[361757101,1747763432976,-450.0,0.00016438,2]
[361757102,1747763432986,-400.0,0.00016438,2]
[361757103,1747763432996,-450.0,0.00016438,2]
[361757104,1747763433006,-416.92,0.00016438,2]
[361757105,1747763433015,-450.0,0.00016438,2]
[361757106,1747763433025,-400.0,0.00016438,2]
[361757107,1747763433034,-400.0,0.00016438,2]
[361757108,1747763433044,-450.0,0.00016438,2]
[361757109,1747763433054,-450.0,0.00016438,2]
[361757110,1747763433064,-450.0,0.00016438,2]
[361757111,1747763433073,-450.0,0.00016438,2]
[361757112,1747763433088,-400.0,0.00016438,2]
[361757113,1747763433097,-351.0726124,0.00016438,2]
[361757114,1747763433107,-450.0,0.00016438,2]
[361757115,1747763433116,-450.0,0.00016438,2]
[361757116,1747763433127,-450.0,0.00016438,2]
[361757117,1747763433136,-542.88019991,0.00016438,2]
[361757118,1747763433146,-350.68537429,0.00016438,2]
[361757119,1747763433156,-450.0,0.00016438,2]
[361757120,1747763433166,-450.0,0.00016438,2]
[361757121,1747763433176,-450.0,0.00016438,2]
[361757122,1747763433186,-450.0,0.00016438,2]
[361757123,1747763433200,-559.3,0.00016438,2]
[361757124,1747763433211,-154.30874281,0.00016438,2]
[361757125,1747763433221,-450.0,0.00016438,2]
[361757126,1747763433231,-450.0,0.00016438,2]
[361757127,1747763433242,-450.0,0.00016438,2]
[361757128,1747763433252,-250.0,0.00016438,2]
[361757129,1747763433262,-450.0,0.00016438,2]
[361757130,1747763433274,-450.0,0.00016438,2]
[361757131,1747763433284,-450.0,0.00016438,2]
[361757132,1747763433294,-450.0,0.00016438,2]
[361757133,1747763433303,-450.0,0.00016438,2]
[361757134,1747763433313,-450.0,0.00016438,2]
[361757135,1747763433323,-450.0,0.00016438,2]
[361757136,1747763433333,-159.20272216,0.00016438,2]
[361757137,1747763433342,-450.0,0.00016438,2]
[361757138,1747763433352,-450.0,0.00016438,2]
[361757139,1747763433363,-450.0,0.00016438,2]
[361757140,1747763433373,-500.0,0.00016438,2]
[361757141,1747763433382,-500.0,0.00016438,2]
[361757142,1747763433392,-500.0,0.00016438,2]
[361757143,1747763433402,-450.0,0.00016438,2]
[361757144,1747763433412,-450.0,0.00016438,2]
[361757145,1747763433422,-450.0,0.00016438,2]
[361757146,1747763433432,-450.0,0.00016438,2]
[361757147,1747763433442,-450.0,0.00016438,2]
[361757148,1747763433451,-450.0,0.00016438,2]
[361757149,1747763433461,-450.0,0.00016438,2]
[361757150,1747763433471,-450.0,0.00016438,2]
[361757151,1747763433482,-450.0,0.00016438,2]
[361757152,1747763433492,-450.0,0.00016438,2]
[361757153,1747763433502,-450.0,0.00016438,2]
[361757154,1747763433512,-462.45,0.00016438,2]
[361757155,1747763433521,-450.0,0.00016438,2]
[361757156,1747763433531,-450.0,0.00016438,2]
[361757157,1747763433541,-489.8569257,0.00016438,2]
[361757158,1747763433551,-548.33,0.00016438,2]
[361757159,1747763433563,-450.0,0.00016438,2]
[361757160,1747763433572,-450.0,0.00016438,2]
[361757161,1747763433582,-450.0,0.00016438,2]
[361757162,1747763433592,-450.0,0.00016438,2]
[361757163,1747763433602,-450.0,0.00016438,2]
[361757164,1747763433612,-450.0,0.00016438,2]
[361757165,1747763433622,-450.0,0.00016438,2]
[361757166,1747763433632,-450.0,0.00016438,2]
[361757167,1747763433642,-450.0,0.00016438,2]
[361757168,1747763433651,-353.52021058,0.00016438,2]
[361757169,1747763433661,-450.0,0.00016438,2]
[361757170,1747763433671,-450.0,0.00016438,2]
[361757171,1747763433681,-450.0,0.00016438,2]
[361757172,1747763433690,-450.0,0.00016438,2]
[361757173,1747763433700,-400.0,0.00016438,2]
[361757174,1747763433710,-450.0,0.00016438,2]
[361757175,1747763433719,-430.0,0.00016438,2]
[361757176,1747763433730,-450.0,0.00016438,2]
[361757177,1747763433740,-450.0,0.00016438,2]
[361757178,1747763433750,-450.0,0.00016438,2]
[361757179,1747763433760,-466.88423915,0.00016438,2]
[361757180,1747763433769,-401.33386649,0.00016438,2]
[361757181,1747763433779,-450.0,0.00016438,2]
[361757182,1747763433788,-450.0,0.00016438,2]
[361757183,1747763433797,-450.0,0.00016438,2]
[361757184,1747763433807,-450.0,0.00016438,2]
[361757185,1747763433817,-450.0,0.00016438,2]
[361757186,1747763433826,-450.0,0.00016438,2]
[361757187,1747763433836,-450.0,0.00016438,2]
[361757188,1747763433846,-450.0,0.00016438,2]
[361757189,1747763433856,-450.0,0.00016438,2]
[361757190,1747763433867,-450.0,0.00016438,2]
[361757191,1747763433877,-450.0,0.00016438,2]
[361757192,1747763433887,-450.0,0.00016438,2]
[361757193,1747763434113,-450.0,0.00016438,2]
[361757194,1747763434124,-450.0,0.00016438,2]
[361757195,1747763434134,-199.39982603,0.00016438,2]
[361757196,1747763434144,-201.88652065,0.00016438,2]
[361757197,1747763434154,-450.0,0.00016438,2]
[361757198,1747763434164,-450.0,0.00016438,2]
[361757199,1747763434174,-450.0,0.00016438,2]
[361757200,1747763434183,-450.0,0.00016438,2]
[361757201,1747763434197,-450.0,0.00016438,2]
[361757202,1747763434207,-450.0,0.00016438,2]
[361757203,1747763434217,-450.0,0.00016438,2]
[361757204,1747763434227,-450.0,0.00016438,2]
[361757205,1747763434238,-1000.0,0.00016438,2]
[361757206,1747763434248,-450.0,0.00016438,2]
[361757207,1747763434258,-327.33540601,0.00016438,2]
[361757208,1747763434268,-450.0,0.00016438,2]
[361757209,1747763434279,-450.0,0.00016438,2]
[361757210,1747763434288,-450.0,0.00016438,2]
[361757211,1747763434298,-450.0,0.00016438,2]
[361757212,1747763434308,-450.0,0.00016438,2]
[361757213,1747763434318,-450.0,0.00016438,2]
[361757214,1747763434328,-450.0,0.00016438,2]
[361757215,1747763434338,-450.0,0.00016438,2]
[361757216,1747763434347,-450.0,0.00016438,2]
[361757217,1747763434357,-450.0,0.00016438,2]
[361757218,1747763434367,-450.0,0.00016438,2]
[361757219,1747763434377,-450.0,0.00016438,2]
[361757220,1747763434387,-152.97749869,0.00016438,2]
[361757221,1747763434397,-450.0,0.00016438,2]
[361757222,1747763434406,-450.0,0.00016438,2]
[361757223,1747763434416,-450.0,0.00016438,2]
[361757224,1747763434426,-450.0,0.00016438,2]
[361757225,1747763434436,-450.0,0.00016438,2]
[361757226,1747763434445,-450.0,0.00016438,2]
[361757227,1747763434455,-430.0,0.00016438,2]
[361757228,1747763434465,-450.0,0.00016438,2]
[361757229,1747763434476,-450.0,0.00016438,2]
[361757230,1747763434486,-450.0,0.00016438,2]
[361757231,1747763434497,-430.0,0.00016438,2]
[361757232,1747763434506,-450.0,0.00016438,2]
[361757233,1747763434516,-450.0,0.00016438,2]
[361757234,1747763434525,-379.40900658,0.00016438,2]
[361757235,1747763434535,-450.0,0.00016438,2]
[361757236,1747763434545,-450.0,0.00016438,2]
[361757237,1747763434555,-450.0,0.00016438,2]
[361757238,1747763434564,-450.0,0.00016438,2]
[361757239,1747763434574,-450.0,0.00016438,2]
[361757240,1747763434583,-430.0,0.00016438,2]
[361757241,1747763434593,-450.0,0.00016438,2]
[361757242,1747763434603,-450.0,0.00016438,2]
[361757243,1747763434612,-450.0,0.00016438,2]
[361757244,1747763434622,-450.0,0.00016438,2]
[361757245,1747763434632,-153.37047306,0.00016438,2]
[361757246,1747763434642,-450.0,0.00016438,2]
[361757247,1747763434651,-168.21391806,0.00016438,2]
[361757248,1747763434661,-400.0,0.00016438,2]
[361757249,1747763434671,-450.0,0.00016438,2]
[361757250,1747763434680,-450.0,0.00016438,2]
[361757251,1747763434690,-450.0,0.00016438,2]
[361757252,1747763434700,-450.0,0.00016438,2]
[361757253,1747763434710,-296.07466001,0.00016438,2]
[361757254,1747763434721,-450.0,0.00016438,2]
[361757255,1747763434731,-549.36655965,0.00016438,2]
[361757256,1747763434741,-450.0,0.00016438,2]
[361757257,1747763434750,-450.0,0.00016438,2]
[361757258,1747763434760,-450.0,0.00016438,2]
[361757259,1747763434769,-480.69,0.00016438,2]
[361757260,1747763434778,-450.0,0.00016438,2]
[361757261,1747763434788,-430.0,0.00016438,2]
[361757262,1747763434797,-430.0,0.00016438,2]
[361757263,1747763434807,-450.0,0.00016438,2]
[361757264,1747763434817,-450.0,0.00016438,2]
[361757265,1747763434827,-450.0,0.00016438,2]
[361757266,1747763434838,-450.0,0.00016438,2]
[361757267,1747763434847,-400.0,0.00016438,2]
[361757268,1747763434856,-450.0,0.00016438,2]
[361757269,1747763434867,-450.0,0.00016438,2]
[361757270,1747763434876,-430.0,0.00016438,2]
[361757271,1747763434886,-450.0,0.00016438,2]
[361757272,1747763434896,-450.0,0.00016438,2]
[361757273,1747763434905,-450.0,0.00016438,2]
[361757274,1747763434915,-403.16801915,0.00016438,2]
[361757275,1747763434926,-430.0,0.00016438,2]
[361757276,1747763434937,-450.0,0.00016438,2]
[361757277,1747763434946,-450.0,0.00016438,2]
[361757278,1747763434956,-430.0,0.00016438,2]
[361757279,1747763434966,-430.0,0.00016438,2]
[361757280,1747763434976,-450.0,0.00016438,2]
[361757281,1747763434987,-450.0,0.00016438,2]
[361757282,1747763434996,-400.0,0.00016438,2]
[361757283,1747763435007,-430.0,0.00016438,2]
[361757284,1747763435017,-430.0,0.00016438,2]
[361757285,1747763435026,-430.0,0.00016438,2]
[361757286,1747763435037,-430.0,0.00016438,2]
[361757287,1747763435046,-450.0,0.00016438,2]
[361757288,1747763435057,-450.0,0.00016438,2]
[361757289,1747763435067,-488.08,0.00016438,2]
[361757290,1747763435078,-430.0,0.00016438,2]
[361757291,1747763435088,-430.0,0.00016438,2]
[361757292,1747763435098,-430.0,0.00016438,2]
[361757293,1747763435108,-430.0,0.00016438,2]
[361757294,1747763435118,-450.0,0.00016438,2]
[361757295,1747763435128,-450.0,0.00016438,2]
[361757296,1747763435138,-430.0,0.00016438,2]
[361757297,1747763435147,-430.0,0.00016438,2]
[361757298,1747763435157,-450.0,0.00016438,2]
[361757299,1747763435167,-450.0,0.00016438,2]
[361757300,1747763435176,-550.53055173,0.00016438,2]
[361757301,1747763435186,-450.0,0.00016438,2]
[361757302,1747763435199,-450.0,0.00016438,2]
[361757303,1747763435209,-450.0,0.00016438,2]
[361757304,1747763435218,-450.0,0.00016438,2]
[361757305,1747763435229,-430.0,0.00016438,2]
[361757306,1747763435240,-401.10724738,0.00016438,2]
[361757307,1747763435250,-430.0,0.00016438,2]
[361757308,1747763435260,-450.0,0.00016438,2]
[361757309,1747763435271,-430.0,0.00016438,2]
[361757310,1747763435281,-430.0,0.00016438,2]
[361757311,1747763435292,-450.0,0.00016438,2]
[361757312,1747763435301,-450.0,0.00016438,2]
[361757313,1747763435311,-430.0,0.00016438,2]
[361757314,1747763435320,-430.0,0.00016438,2]
[361757315,1747763435330,-430.0,0.00016438,2]
[361757316,1747763435339,-569.34703786,0.00016438,2]
[361757317,1747763435349,-430.0,0.00016438,2]
[361757318,1747763435359,-455.87,0.00016438,2]
[361757319,1747763435368,-450.0,0.00016438,2]
[361757320,1747763435378,-450.0,0.00016438,2]
[361757321,1747763435388,-481.86,0.00016438,2]
[361757322,1747763435398,-430.0,0.00016438,2]
[361757323,1747763435408,-430.0,0.00016438,2]
[361757324,1747763435418,-401.15806681,0.00016438,2]
[361757325,1747763435428,-430.0,0.00016438,2]
[361757326,1747763435439,-401.68929924,0.00016438,2]
[361757327,1747763435448,-450.0,0.00016438,2]
[361757328,1747763435459,-450.0,0.00016438,2]
[361757329,1747763435471,-450.0,0.00016438,2]
[361757330,1747763435481,-450.0,0.00016438,2]
[361757331,1747763435490,-400.0,0.00016438,2]
[361757332,1747763435499,-450.0,0.00016438,2]
[361757333,1747763435508,-450.0,0.00016438,2]
[361757334,1747763435517,-430.0,0.00016438,2]
[361757335,1747763435527,-430.0,0.00016438,2]
[361757336,1747763435537,-430.0,0.00016438,2]
[361757337,1747763435548,-400.0,0.00016438,2]
[361757338,1747763435557,-430.0,0.00016438,2]
[361757339,1747763435567,-450.0,0.00016438,2]
[361757340,1747763435576,-430.0,0.00016438,2]
[361757341,1747763435585,-450.0,0.00016438,2]
[361757342,1747763435595,-475.34,0.00016438,2]
[361757343,1747763435604,-430.0,0.00016438,2]
[361757344,1747763435613,-517.49,0.00016438,2]
[361757345,1747763435623,-450.0,0.00016438,2]
[361757346,1747763435632,-450.0,0.00016438,2]
[361757347,1747763435642,-430.0,0.00016438,2]
[361757348,1747763435651,-430.0,0.00016438,2]
[361757349,1747763435660,-430.0,0.00016438,2]
[361757350,1747763435670,-450.0,0.00016438,2]
[361757351,1747763435679,-430.0,0.00016438,2]
[361757352,1747763435688,-430.0,0.00016438,2]